{"text_format":"3","workbook":"xlsx","n_sheets":5,"sheets":["Обзор вечеринки","Список гостей","Еда и напитки","Дополнительно","Схема распределения мест"],"not_rendered":{"defined_names":9},"read":"whole","date_system":"1900"}

{"sheet":"Обзор вечеринки","index":0,"n_rows":21,"n_cols":8,"rows_kept":21,"merged":[[6,3,6,4],[6,5,6,6],[9,1,9,2]]}
[]
[]
[null,"Обзор вечеринки"]
[]
[]
[null,"СОБЫТИЕ",null,"СВОДНЫЕ СВЕДЕНИЯ О ГОСТЯХ",{"$nulls":3},{"$f":"\"НЕ ПОДТВЕРДИЛИ ПРИГЛАШЕНИЕ: \"&НеПодтвердилиПриглашение","v":"НЕ ПОДТВЕРДИЛИ ПРИГЛАШЕНИЕ: 2"}]
[null,"Юбилей",null,"ОТВЕТЫ НА ПРИГЛАШЕНИЯ",null,"РАСХОДЫ НА ГОСТЯ",null,"СУММА БЮДЖЕТА"]
[{"$nulls":3},"Подтвержденные гости","Количество подтвержденных гостей","Еда","Другое","Всего"]
[null,"ДАТА",null,"Взрослые",{"$f":"SUMIF(СтолДляГостей[ПРИДЕТ?],\"=Да\",СтолДляГостей[ВЗРОСЛЫЕ])","v":26},{"$f":"ШведскийСтол[[#Totals],[СТОИМОСТЬ НА ВЗРОСЛОГО]]","v":{"v":12.690089084110037,"d":"12.69р."}},{"$f":"ОсновныеЗатратыНаГостя","v":{"v":18.695652173913043,"d":"18.70р."}},{"$f":"(СводкаОПриглашенных[[#This Row],[Еда]]+СводкаОПриглашенных[[#This Row],[Другое]])*ВсегоВзрослых","v":{"v":816.0292727086002,"d":"816.03р."}}]
[null,"2011-06-14",null,"Дети",{"$f":"SUMIF(СтолДляГостей[ПРИДЕТ?],\"=Да\",СтолДляГостей[ДЕТИ])","v":20},{"$f":"ШведскийСтол[[#Totals],[СТОИМОСТЬ НА РЕБЕНКА]]","v":{"v":7.252884190656953,"d":"7.25р."}},{"$f":"ОсновныеЗатратыНаГостя","v":{"v":18.695652173913043,"d":"18.70р."}},{"$f":"(СводкаОПриглашенных[[#This Row],[Еда]]+СводкаОПриглашенных[[#This Row],[Другое]])*ВсегоДетей","v":{"v":518.9707272914,"d":"518.97р."}}]
[{"$nulls":3},"Итог",{"$f":"SUBTOTAL(109,СводкаОПриглашенных[Количество подтвержденных гостей])","v":46},{"$f":"\"Средн.     \"&TEXT(SUBTOTAL(101,СводкаОПриглашенных[Еда]),\"# ##0,00р.\")","v":"Средн.     9,97р."},{"$f":"\"Средн.     \"&TEXT(SUBTOTAL(101,СводкаОПриглашенных[Другое]),\"# ##0,00р.\")","v":"Средн.     18,70р."},{"$f":"SUBTOTAL(109,СводкаОПриглашенных[Всего])","v":{"v":1335,"d":"1,335.00р."}}]
[null,"ВРЕМЯ"]
[null,"14:00–16:00"]
[]
[null,"МЕСТО",null,"СВОДНЫЙ БЮДЖЕТ"]
[null,"Дом тети Марии",null,"ПУНКТ","КОЛИЧЕСТВО","СУММА БЮДЖЕТА","ОБЩАЯ СТОИМОСТЬ","РАЗНИЦА"]
[{"$nulls":3},"Еда и напитки",{"$f":"COUNTA(ШведскийСтол[БЛЮДО ИЛИ НАПИТОК])","v":18},{"v":500,"d":"500.00р."},{"$f":"ШведскийСтол[[#Totals],[ОБЩАЯ СТОИМОСТЬ]]","v":{"v":475,"d":"475.00р."}},{"$f":"ОбзорБюджета[[#This Row],[СУММА БЮДЖЕТА]]-ОбзорБюджета[[#This Row],[ОБЩАЯ СТОИМОСТЬ]]","v":{"v":25,"d":"25.00р."}}]
[{"$nulls":3},{"$f":"Таблица1Заголовок","v":"Оборудование и приборы"},{"$f":"COUNTA(Таблица1Бюджет[Оборудование и приборы])","v":7},{"v":400,"d":"400.00р."},{"$f":"Таблица1Бюджет[[#Totals],[Стоимость]]","v":{"v":400,"d":"400.00р."}},{"$f":"ОбзорБюджета[[#This Row],[СУММА БЮДЖЕТА]]-ОбзорБюджета[[#This Row],[ОБЩАЯ СТОИМОСТЬ]]","v":{"v":0,"d":"0.00р."}}]
[{"$nulls":3},{"$f":"Таблица2Заголовок","v":"Декорации"},{"$f":"COUNTA(Таблица2Бюджет[Декорации])","v":4},{"v":150,"d":"150.00р."},{"$f":"Таблица2Бюджет[[#Totals],[Стоимость]]","v":{"v":175,"d":"175.00р."}},{"$f":"ОбзорБюджета[[#This Row],[СУММА БЮДЖЕТА]]-ОбзорБюджета[[#This Row],[ОБЩАЯ СТОИМОСТЬ]]","v":{"v":-25,"d":"-25.00р."}}]
[{"$nulls":3},{"$f":"Таблица3Заголовок","v":"Другое"},{"$f":"COUNTA(Таблица3Бюджет[Другое])","v":4},{"v":300,"d":"300.00р."},{"$f":"Таблица3Бюджет[[#Totals],[Стоимость]]","v":{"v":285,"d":"285.00р."}},{"$f":"ОбзорБюджета[[#This Row],[СУММА БЮДЖЕТА]]-ОбзорБюджета[[#This Row],[ОБЩАЯ СТОИМОСТЬ]]","v":{"v":15,"d":"15.00р."}}]
[{"$nulls":3},"Итог",{"$f":"SUBTOTAL(109,ОбзорБюджета[КОЛИЧЕСТВО])","v":33},{"$f":"SUBTOTAL(109,ОбзорБюджета[СУММА БЮДЖЕТА])","v":{"v":1350,"d":"1,350.00р."}},{"$f":"SUBTOTAL(109,ОбзорБюджета[ОБЩАЯ СТОИМОСТЬ])","v":{"v":1335,"d":"1,335.00р."}},{"$f":"SUBTOTAL(109,ОбзорБюджета[РАЗНИЦА])","v":{"v":15,"d":"15.00р."}}]

{"sheet":"Список гостей","index":1,"n_rows":22,"n_cols":12,"rows_kept":22}
[]
[]
[null,"Список гостей"]
[]
[]
[]
[null,"ИМЯ","АДРЕС","ГОРОД","ОБЛАСТЬ","ПОЧТОВЫЙ ИНДЕКС","ТЕЛЕФОН","ЭЛЕКТРОННАЯ ПОЧТА","ПРИДЕТ?","ДЕТИ","ВЗРОСЛЫЕ","ВСЕГО"]
[null,"Семья 1","Адрес 1","Город 1","Область 1","Почтовый индекс 1","Телефон 1","Электронная почта 1","Нет",2,2,{"$f":"SUM(СтолДляГостей[[#This Row],[ДЕТИ]:[ВЗРОСЛЫЕ]])","v":4}]
[null,"Семья 2","Адрес 2","Город 2","Область 2","Почтовый индекс 2","Телефон 2","Электронная почта 2","Да",1,1,{"$f":"SUM(СтолДляГостей[[#This Row],[ДЕТИ]:[ВЗРОСЛЫЕ]])","v":2}]
[null,"Семья 3","Адрес 3","Город 3","Область 3","Почтовый индекс 3","Телефон 3","Электронная почта 3","Да",3,3,{"$f":"SUM(СтолДляГостей[[#This Row],[ДЕТИ]:[ВЗРОСЛЫЕ]])","v":6}]
[null,"Семья 4","Адрес 4","Город 4","Область 4","Почтовый индекс 4","Телефон 4","Электронная почта 4",null,null,2,{"$f":"SUM(СтолДляГостей[[#This Row],[ДЕТИ]:[ВЗРОСЛЫЕ]])","v":2}]
[null,"Семья 5","Адрес 5","Город 5","Область 5","Почтовый индекс 5","Телефон 5","Электронная почта 5","Да",4,3,{"$f":"SUM(СтолДляГостей[[#This Row],[ДЕТИ]:[ВЗРОСЛЫЕ]])","v":7}]
[null,"Семья 6","Адрес 6","Город 6","Область 6","Почтовый индекс 6","Телефон 6","Электронная почта 6","Да",2,2,{"$f":"SUM(СтолДляГостей[[#This Row],[ДЕТИ]:[ВЗРОСЛЫЕ]])","v":4}]
[null,"Семья 7","Адрес 7","Город 7","Область 7","Почтовый индекс 7","Телефон 7","Электронная почта 7","Да",1,4,{"$f":"SUM(СтолДляГостей[[#This Row],[ДЕТИ]:[ВЗРОСЛЫЕ]])","v":5}]
[null,"Семья 8","Адрес 8","Город 8","Область 8","Почтовый индекс 8","Телефон 8","Электронная почта 8","Нет",5,3,{"$f":"SUM(СтолДляГостей[[#This Row],[ДЕТИ]:[ВЗРОСЛЫЕ]])","v":8}]
[null,"Семья 9","Адрес 9","Город 9","Область 9","Почтовый индекс 9","Телефон 9","Электронная почта 9","Да",3,2,{"$f":"SUM(СтолДляГостей[[#This Row],[ДЕТИ]:[ВЗРОСЛЫЕ]])","v":5}]
[null,"Семья 10","Адрес 10","Город 10","Область 10","Почтовый индекс 10","Телефон 10","Электронная почта 10","Да",null,4,{"$f":"SUM(СтолДляГостей[[#This Row],[ДЕТИ]:[ВЗРОСЛЫЕ]])","v":4}]
[null,"Семья 11","Адрес 11","Город 11","Область 11","Почтовый индекс 11","Телефон 11","Электронная почта 11","Да",3,5,{"$f":"SUM(СтолДляГостей[[#This Row],[ДЕТИ]:[ВЗРОСЛЫЕ]])","v":8}]
[null,"Семья 12","Адрес 12","Город 12","Область 12","Почтовый индекс 12","Телефон 12","Электронная почта 12","Нет",2,3,{"$f":"SUM(СтолДляГостей[[#This Row],[ДЕТИ]:[ВЗРОСЛЫЕ]])","v":5}]
[null,"Семья 13","Адрес 13","Город 13","Область 13","Почтовый индекс 13","Телефон 13","Электронная почта 13","Да",3,2,{"$f":"SUM(СтолДляГостей[[#This Row],[ДЕТИ]:[ВЗРОСЛЫЕ]])","v":5}]
[null,"Семья 14","Адрес 14","Город 14","Область 14","Почтовый индекс 14","Телефон 14","Электронная почта 14","Нет",null,1,{"$f":"SUM(СтолДляГостей[[#This Row],[ДЕТИ]:[ВЗРОСЛЫЕ]])","v":1}]
[null,"Семья 15","Адрес 15","Город 15","Область 15","Почтовый индекс 15","Телефон 15","Электронная почта 15",null,null,2,{"$f":"SUM(СтолДляГостей[[#This Row],[ДЕТИ]:[ВЗРОСЛЫЕ]])","v":2}]

{"sheet":"Еда и напитки","index":2,"n_rows":25,"n_cols":10,"rows_kept":25}
[]
[]
[null,"Закуски и напитки"]
[]
[null,"Введите стоимость и предполагаемое количество порций, чтобы автоматически вычислить общее количество порций и стоимость порции, исходя из количества гостей"]
[null,"БЛЮДО ИЛИ НАПИТОК","ОБЩАЯ СТОИМОСТЬ","ПОРЦИЯ ДЛЯ РЕБЕНКА","ПОРЦИЯ ДЛЯ ВЗРОСЛОГО","ВСЕГО ПОРЦИЙ","СТОИМОСТЬ ПОРЦИИ","СТОИМОСТЬ НА РЕБЕНКА","СТОИМОСТЬ НА ВЗРОСЛОГО","ПРИМЕЧАНИЯ"]
[null,"Газировка",{"v":15,"d":"15.00р."},0.5,2,{"$f":"(ШведскийСтол[[#This Row],[ПОРЦИЯ ДЛЯ РЕБЕНКА]]*ВсегоДетей)+(ШведскийСтол[[#This Row],[ПОРЦИЯ ДЛЯ ВЗРОСЛОГО]]*ВсегоВзрослых)","v":62},{"$f":"IFERROR(ШведскийСтол[[#This Row],[ОБЩАЯ СТОИМОСТЬ]]/ШведскийСтол[[#This Row],[ВСЕГО ПОРЦИЙ]],\"\")","v":{"v":0.24193548387096775,"d":"0.24р."}},{"$f":"IFERROR(ШведскийСтол[[#This Row],[ПОРЦИЯ ДЛЯ РЕБЕНКА]]*ШведскийСтол[[#This Row],[СТОИМОСТЬ ПОРЦИИ]],\"\")","v":{"v":0.12096774193548387,"d":"0.12р."}},{"$f":"IFERROR(ШведскийСтол[[#This Row],[ПОРЦИЯ ДЛЯ ВЗРОСЛОГО]]*ШведскийСтол[[#This Row],[СТОИМОСТЬ ПОРЦИИ]],\"\")","v":{"v":0.4838709677419355,"d":"0.48р."}},"2-литровые бутылки"]
[null,"Соки в пакетах",{"v":15,"d":"15.00р."},2,0,{"$f":"(ШведскийСтол[[#This Row],[ПОРЦИЯ ДЛЯ РЕБЕНКА]]*ВсегоДетей)+(ШведскийСтол[[#This Row],[ПОРЦИЯ ДЛЯ ВЗРОСЛОГО]]*ВсегоВзрослых)","v":40},{"$f":"IFERROR(ШведскийСтол[[#This Row],[ОБЩАЯ СТОИМОСТЬ]]/ШведскийСтол[[#This Row],[ВСЕГО ПОРЦИЙ]],\"\")","v":{"v":0.375,"d":"0.38р."}},{"$f":"IFERROR(ШведскийСтол[[#This Row],[ПОРЦИЯ ДЛЯ РЕБЕНКА]]*ШведскийСтол[[#This Row],[СТОИМОСТЬ ПОРЦИИ]],\"\")","v":{"v":0.75,"d":"0.75р."}},{"$f":"IFERROR(ШведскийСтол[[#This Row],[ПОРЦИЯ ДЛЯ ВЗРОСЛОГО]]*ШведскийСтол[[#This Row],[СТОИМОСТЬ ПОРЦИИ]],\"\")","v":{"v":0,"d":"0.00р."}},"Яблочный и виноградный"]
[null,"Вино",{"v":50,"d":"50.00р."},0,2,{"$f":"(ШведскийСтол[[#This Row],[ПОРЦИЯ ДЛЯ РЕБЕНКА]]*ВсегоДетей)+(ШведскийСтол[[#This Row],[ПОРЦИЯ ДЛЯ ВЗРОСЛОГО]]*ВсегоВзрослых)","v":52},{"$f":"IFERROR(ШведскийСтол[[#This Row],[ОБЩАЯ СТОИМОСТЬ]]/ШведскийСтол[[#This Row],[ВСЕГО ПОРЦИЙ]],\"\")","v":{"v":0.9615384615384616,"d":"0.96р."}},{"$f":"IFERROR(ШведскийСтол[[#This Row],[ПОРЦИЯ ДЛЯ РЕБЕНКА]]*ШведскийСтол[[#This Row],[СТОИМОСТЬ ПОРЦИИ]],\"\")","v":{"v":0,"d":"0.00р."}},{"$f":"IFERROR(ШведскийСтол[[#This Row],[ПОРЦИЯ ДЛЯ ВЗРОСЛОГО]]*ШведскийСтол[[#This Row],[СТОИМОСТЬ ПОРЦИИ]],\"\")","v":{"v":1.9230769230769231,"d":"1.92р."}}]
[null,"Торт",{"v":75,"d":"75.00р."},1,1,{"$f":"(ШведскийСтол[[#This Row],[ПОРЦИЯ ДЛЯ РЕБЕНКА]]*ВсегоДетей)+(ШведскийСтол[[#This Row],[ПОРЦИЯ ДЛЯ ВЗРОСЛОГО]]*ВсегоВзрослых)","v":46},{"$f":"IFERROR(ШведскийСтол[[#This Row],[ОБЩАЯ СТОИМОСТЬ]]/ШведскийСтол[[#This Row],[ВСЕГО ПОРЦИЙ]],\"\")","v":{"v":1.6304347826086956,"d":"1.63р."}},{"$f":"IFERROR(ШведскийСтол[[#This Row],[ПОРЦИЯ ДЛЯ РЕБЕНКА]]*ШведскийСтол[[#This Row],[СТОИМОСТЬ ПОРЦИИ]],\"\")","v":{"v":1.6304347826086956,"d":"1.63р."}},{"$f":"IFERROR(ШведскийСтол[[#This Row],[ПОРЦИЯ ДЛЯ ВЗРОСЛОГО]]*ШведскийСтол[[#This Row],[СТОИМОСТЬ ПОРЦИИ]],\"\")","v":{"v":1.6304347826086956,"d":"1.63р."}},"Заказать в местной булочной"]
[null,"Мороженое",{"v":20,"d":"20.00р."},1,1.5,{"$f":"(ШведскийСтол[[#This Row],[ПОРЦИЯ ДЛЯ РЕБЕНКА]]*ВсегоДетей)+(ШведскийСтол[[#This Row],[ПОРЦИЯ ДЛЯ ВЗРОСЛОГО]]*ВсегоВзрослых)","v":59},{"$f":"IFERROR(ШведскийСтол[[#This Row],[ОБЩАЯ СТОИМОСТЬ]]/ШведскийСтол[[#This Row],[ВСЕГО ПОРЦИЙ]],\"\")","v":{"v":0.3389830508474576,"d":"0.34р."}},{"$f":"IFERROR(ШведскийСтол[[#This Row],[ПОРЦИЯ ДЛЯ РЕБЕНКА]]*ШведскийСтол[[#This Row],[СТОИМОСТЬ ПОРЦИИ]],\"\")","v":{"v":0.3389830508474576,"d":"0.34р."}},{"$f":"IFERROR(ШведскийСтол[[#This Row],[ПОРЦИЯ ДЛЯ ВЗРОСЛОГО]]*ШведскийСтол[[#This Row],[СТОИМОСТЬ ПОРЦИИ]],\"\")","v":{"v":0.5084745762711864,"d":"0.51р."}}]
[null,"Пудинг",{"v":15,"d":"15.00р."},1,0,{"$f":"(ШведскийСтол[[#This Row],[ПОРЦИЯ ДЛЯ РЕБЕНКА]]*ВсегоДетей)+(ШведскийСтол[[#This Row],[ПОРЦИЯ ДЛЯ ВЗРОСЛОГО]]*ВсегоВзрослых)","v":20},{"$f":"IFERROR(ШведскийСтол[[#This Row],[ОБЩАЯ СТОИМОСТЬ]]/ШведскийСтол[[#This Row],[ВСЕГО ПОРЦИЙ]],\"\")","v":{"v":0.75,"d":"0.75р."}},{"$f":"IFERROR(ШведскийСтол[[#This Row],[ПОРЦИЯ ДЛЯ РЕБЕНКА]]*ШведскийСтол[[#This Row],[СТОИМОСТЬ ПОРЦИИ]],\"\")","v":{"v":0.75,"d":"0.75р."}},{"$f":"IFERROR(ШведскийСтол[[#This Row],[ПОРЦИЯ ДЛЯ ВЗРОСЛОГО]]*ШведскийСтол[[#This Row],[СТОИМОСТЬ ПОРЦИИ]],\"\")","v":{"v":0,"d":"0.00р."}},"Купить ванильное и шоколадное (в упаковках)"]
[null,"Фаршированные грибы",{"v":32,"d":"32.00р."},1,2,{"$f":"(ШведскийСтол[[#This Row],[ПОРЦИЯ ДЛЯ РЕБЕНКА]]*ВсегоДетей)+(ШведскийСтол[[#This Row],[ПОРЦИЯ ДЛЯ ВЗРОСЛОГО]]*ВсегоВзрослых)","v":72},{"$f":"IFERROR(ШведскийСтол[[#This Row],[ОБЩАЯ СТОИМОСТЬ]]/ШведскийСтол[[#This Row],[ВСЕГО ПОРЦИЙ]],\"\")","v":{"v":0.4444444444444444,"d":"0.44р."}},{"$f":"IFERROR(ШведскийСтол[[#This Row],[ПОРЦИЯ ДЛЯ РЕБЕНКА]]*ШведскийСтол[[#This Row],[СТОИМОСТЬ ПОРЦИИ]],\"\")","v":{"v":0.4444444444444444,"d":"0.44р."}},{"$f":"IFERROR(ШведскийСтол[[#This Row],[ПОРЦИЯ ДЛЯ ВЗРОСЛОГО]]*ШведскийСтол[[#This Row],[СТОИМОСТЬ ПОРЦИИ]],\"\")","v":{"v":0.8888888888888888,"d":"0.89р."}},"Шампиньоны, фаршированные сливочным сыром и фаршем"]
[null,"Канапе",{"v":22,"d":"22.00р."},0,3,{"$f":"(ШведскийСтол[[#This Row],[ПОРЦИЯ ДЛЯ РЕБЕНКА]]*ВсегоДетей)+(ШведскийСтол[[#This Row],[ПОРЦИЯ ДЛЯ ВЗРОСЛОГО]]*ВсегоВзрослых)","v":78},{"$f":"IFERROR(ШведскийСтол[[#This Row],[ОБЩАЯ СТОИМОСТЬ]]/ШведскийСтол[[#This Row],[ВСЕГО ПОРЦИЙ]],\"\")","v":{"v":0.28205128205128205,"d":"0.28р."}},{"$f":"IFERROR(ШведскийСтол[[#This Row],[ПОРЦИЯ ДЛЯ РЕБЕНКА]]*ШведскийСтол[[#This Row],[СТОИМОСТЬ ПОРЦИИ]],\"\")","v":{"v":0,"d":"0.00р."}},{"$f":"IFERROR(ШведскийСтол[[#This Row],[ПОРЦИЯ ДЛЯ ВЗРОСЛОГО]]*ШведскийСтол[[#This Row],[СТОИМОСТЬ ПОРЦИИ]],\"\")","v":{"v":0.8461538461538461,"d":"0.85р."}},"Помидоры и базилик "]
[null,"Копченый лосось",{"v":50,"d":"50.00р."},1,2,{"$f":"(ШведскийСтол[[#This Row],[ПОРЦИЯ ДЛЯ РЕБЕНКА]]*ВсегоДетей)+(ШведскийСтол[[#This Row],[ПОРЦИЯ ДЛЯ ВЗРОСЛОГО]]*ВсегоВзрослых)","v":72},{"$f":"IFERROR(ШведскийСтол[[#This Row],[ОБЩАЯ СТОИМОСТЬ]]/ШведскийСтол[[#This Row],[ВСЕГО ПОРЦИЙ]],\"\")","v":{"v":0.6944444444444444,"d":"0.69р."}},{"$f":"IFERROR(ШведскийСтол[[#This Row],[ПОРЦИЯ ДЛЯ РЕБЕНКА]]*ШведскийСтол[[#This Row],[СТОИМОСТЬ ПОРЦИИ]],\"\")","v":{"v":0.6944444444444444,"d":"0.69р."}},{"$f":"IFERROR(ШведскийСтол[[#This Row],[ПОРЦИЯ ДЛЯ ВЗРОСЛОГО]]*ШведскийСтол[[#This Row],[СТОИМОСТЬ ПОРЦИИ]],\"\")","v":{"v":1.3888888888888888,"d":"1.39р."}}]
[null,"Рогалики",{"v":20,"d":"20.00р."},1,2,{"$f":"(ШведскийСтол[[#This Row],[ПОРЦИЯ ДЛЯ РЕБЕНКА]]*ВсегоДетей)+(ШведскийСтол[[#This Row],[ПОРЦИЯ ДЛЯ ВЗРОСЛОГО]]*ВсегоВзрослых)","v":72},{"$f":"IFERROR(ШведскийСтол[[#This Row],[ОБЩАЯ СТОИМОСТЬ]]/ШведскийСтол[[#This Row],[ВСЕГО ПОРЦИЙ]],\"\")","v":{"v":0.2777777777777778,"d":"0.28р."}},{"$f":"IFERROR(ШведскийСтол[[#This Row],[ПОРЦИЯ ДЛЯ РЕБЕНКА]]*ШведскийСтол[[#This Row],[СТОИМОСТЬ ПОРЦИИ]],\"\")","v":{"v":0.2777777777777778,"d":"0.28р."}},{"$f":"IFERROR(ШведскийСтол[[#This Row],[ПОРЦИЯ ДЛЯ ВЗРОСЛОГО]]*ШведскийСтол[[#This Row],[СТОИМОСТЬ ПОРЦИИ]],\"\")","v":{"v":0.5555555555555556,"d":"0.56р."}},"4 пакета, ассорти"]
[null,"Сливочный сыр",{"v":10,"d":"10.00р."},1,2,{"$f":"(ШведскийСтол[[#This Row],[ПОРЦИЯ ДЛЯ РЕБЕНКА]]*ВсегоДетей)+(ШведскийСтол[[#This Row],[ПОРЦИЯ ДЛЯ ВЗРОСЛОГО]]*ВсегоВзрослых)","v":72},{"$f":"IFERROR(ШведскийСтол[[#This Row],[ОБЩАЯ СТОИМОСТЬ]]/ШведскийСтол[[#This Row],[ВСЕГО ПОРЦИЙ]],\"\")","v":{"v":0.1388888888888889,"d":"0.14р."}},{"$f":"IFERROR(ШведскийСтол[[#This Row],[ПОРЦИЯ ДЛЯ РЕБЕНКА]]*ШведскийСтол[[#This Row],[СТОИМОСТЬ ПОРЦИИ]],\"\")","v":{"v":0.1388888888888889,"d":"0.14р."}},{"$f":"IFERROR(ШведскийСтол[[#This Row],[ПОРЦИЯ ДЛЯ ВЗРОСЛОГО]]*ШведскийСтол[[#This Row],[СТОИМОСТЬ ПОРЦИИ]],\"\")","v":{"v":0.2777777777777778,"d":"0.28р."}},"2 большие упаковки"]
[null,"Каперсы",{"v":12,"d":"12.00р."},1,2,{"$f":"(ШведскийСтол[[#This Row],[ПОРЦИЯ ДЛЯ РЕБЕНКА]]*ВсегоДетей)+(ШведскийСтол[[#This Row],[ПОРЦИЯ ДЛЯ ВЗРОСЛОГО]]*ВсегоВзрослых)","v":72},{"$f":"IFERROR(ШведскийСтол[[#This Row],[ОБЩАЯ СТОИМОСТЬ]]/ШведскийСтол[[#This Row],[ВСЕГО ПОРЦИЙ]],\"\")","v":{"v":0.16666666666666666,"d":"0.17р."}},{"$f":"IFERROR(ШведскийСтол[[#This Row],[ПОРЦИЯ ДЛЯ РЕБЕНКА]]*ШведскийСтол[[#This Row],[СТОИМОСТЬ ПОРЦИИ]],\"\")","v":{"v":0.16666666666666666,"d":"0.17р."}},{"$f":"IFERROR(ШведскийСтол[[#This Row],[ПОРЦИЯ ДЛЯ ВЗРОСЛОГО]]*ШведскийСтол[[#This Row],[СТОИМОСТЬ ПОРЦИИ]],\"\")","v":{"v":0.3333333333333333,"d":"0.33р."}},"3 баночки"]
[null,"Куриные крылышки",{"v":45,"d":"45.00р."},2,4,{"$f":"(ШведскийСтол[[#This Row],[ПОРЦИЯ ДЛЯ РЕБЕНКА]]*ВсегоДетей)+(ШведскийСтол[[#This Row],[ПОРЦИЯ ДЛЯ ВЗРОСЛОГО]]*ВсегоВзрослых)","v":144},{"$f":"IFERROR(ШведскийСтол[[#This Row],[ОБЩАЯ СТОИМОСТЬ]]/ШведскийСтол[[#This Row],[ВСЕГО ПОРЦИЙ]],\"\")","v":{"v":0.3125,"d":"0.31р."}},{"$f":"IFERROR(ШведскийСтол[[#This Row],[ПОРЦИЯ ДЛЯ РЕБЕНКА]]*ШведскийСтол[[#This Row],[СТОИМОСТЬ ПОРЦИИ]],\"\")","v":{"v":0.625,"d":"0.63р."}},{"$f":"IFERROR(ШведскийСтол[[#This Row],[ПОРЦИЯ ДЛЯ ВЗРОСЛОГО]]*ШведскийСтол[[#This Row],[СТОИМОСТЬ ПОРЦИИ]],\"\")","v":{"v":1.25,"d":"1.25р."}},"Купить в местном магазине"]
[null,"Хумус",{"v":10,"d":"10.00р."},4,6,{"$f":"(ШведскийСтол[[#This Row],[ПОРЦИЯ ДЛЯ РЕБЕНКА]]*ВсегоДетей)+(ШведскийСтол[[#This Row],[ПОРЦИЯ ДЛЯ ВЗРОСЛОГО]]*ВсегоВзрослых)","v":236},{"$f":"IFERROR(ШведскийСтол[[#This Row],[ОБЩАЯ СТОИМОСТЬ]]/ШведскийСтол[[#This Row],[ВСЕГО ПОРЦИЙ]],\"\")","v":{"v":0.0423728813559322,"d":"0.04р."}},{"$f":"IFERROR(ШведскийСтол[[#This Row],[ПОРЦИЯ ДЛЯ РЕБЕНКА]]*ШведскийСтол[[#This Row],[СТОИМОСТЬ ПОРЦИИ]],\"\")","v":{"v":0.1694915254237288,"d":"0.17р."}},{"$f":"IFERROR(ШведскийСтол[[#This Row],[ПОРЦИЯ ДЛЯ ВЗРОСЛОГО]]*ШведскийСтол[[#This Row],[СТОИМОСТЬ ПОРЦИИ]],\"\")","v":{"v":0.2542372881355932,"d":"0.25р."}},"Приготовить заранее"]
[null,"Блины с икрой",{"v":14,"d":"14.00р."},4,6,{"$f":"(ШведскийСтол[[#This Row],[ПОРЦИЯ ДЛЯ РЕБЕНКА]]*ВсегоДетей)+(ШведскийСтол[[#This Row],[ПОРЦИЯ ДЛЯ ВЗРОСЛОГО]]*ВсегоВзрослых)","v":236},{"$f":"IFERROR(ШведскийСтол[[#This Row],[ОБЩАЯ СТОИМОСТЬ]]/ШведскийСтол[[#This Row],[ВСЕГО ПОРЦИЙ]],\"\")","v":{"v":0.059322033898305086,"d":"0.06р."}},{"$f":"IFERROR(ШведскийСтол[[#This Row],[ПОРЦИЯ ДЛЯ РЕБЕНКА]]*ШведскийСтол[[#This Row],[СТОИМОСТЬ ПОРЦИИ]],\"\")","v":{"v":0.23728813559322035,"d":"0.24р."}},{"$f":"IFERROR(ШведскийСтол[[#This Row],[ПОРЦИЯ ДЛЯ ВЗРОСЛОГО]]*ШведскийСтол[[#This Row],[СТОИМОСТЬ ПОРЦИИ]],\"\")","v":{"v":0.3559322033898305,"d":"0.36р."}},"Приготовить заранее"]
[null,"Овощное ассорти",{"v":30,"d":"30.00р."},4,10,{"$f":"(ШведскийСтол[[#This Row],[ПОРЦИЯ ДЛЯ РЕБЕНКА]]*ВсегоДетей)+(ШведскийСтол[[#This Row],[ПОРЦИЯ ДЛЯ ВЗРОСЛОГО]]*ВсегоВзрослых)","v":340},{"$f":"IFERROR(ШведскийСтол[[#This Row],[ОБЩАЯ СТОИМОСТЬ]]/ШведскийСтол[[#This Row],[ВСЕГО ПОРЦИЙ]],\"\")","v":{"v":0.08823529411764706,"d":"0.09р."}},{"$f":"IFERROR(ШведскийСтол[[#This Row],[ПОРЦИЯ ДЛЯ РЕБЕНКА]]*ШведскийСтол[[#This Row],[СТОИМОСТЬ ПОРЦИИ]],\"\")","v":{"v":0.35294117647058826,"d":"0.35р."}},{"$f":"IFERROR(ШведскийСтол[[#This Row],[ПОРЦИЯ ДЛЯ ВЗРОСЛОГО]]*ШведскийСтол[[#This Row],[СТОИМОСТЬ ПОРЦИИ]],\"\")","v":{"v":0.8823529411764707,"d":"0.88р."}},"Морковь, сельдерей, брокколи, цветная капуста, красный и зеленый перец"]
[null,"Сырные шарики",{"v":15,"d":"15.00р."},5,10,{"$f":"(ШведскийСтол[[#This Row],[ПОРЦИЯ ДЛЯ РЕБЕНКА]]*ВсегоДетей)+(ШведскийСтол[[#This Row],[ПОРЦИЯ ДЛЯ ВЗРОСЛОГО]]*ВсегоВзрослых)","v":360},{"$f":"IFERROR(ШведскийСтол[[#This Row],[ОБЩАЯ СТОИМОСТЬ]]/ШведскийСтол[[#This Row],[ВСЕГО ПОРЦИЙ]],\"\")","v":{"v":0.041666666666666664,"d":"0.04р."}},{"$f":"IFERROR(ШведскийСтол[[#This Row],[ПОРЦИЯ ДЛЯ РЕБЕНКА]]*ШведскийСтол[[#This Row],[СТОИМОСТЬ ПОРЦИИ]],\"\")","v":{"v":0.20833333333333331,"d":"0.21р."}},{"$f":"IFERROR(ШведскийСтол[[#This Row],[ПОРЦИЯ ДЛЯ ВЗРОСЛОГО]]*ШведскийСтол[[#This Row],[СТОИМОСТЬ ПОРЦИИ]],\"\")","v":{"v":0.41666666666666663,"d":"0.42р."}},"Ассорти: сливочный сыр, острый сыр с орехами"]
[null,"Крекеры",{"v":25,"d":"25.00р."},5,10,{"$f":"(ШведскийСтол[[#This Row],[ПОРЦИЯ ДЛЯ РЕБЕНКА]]*ВсегоДетей)+(ШведскийСтол[[#This Row],[ПОРЦИЯ ДЛЯ ВЗРОСЛОГО]]*ВсегоВзрослых)","v":360},{"$f":"IFERROR(ШведскийСтол[[#This Row],[ОБЩАЯ СТОИМОСТЬ]]/ШведскийСтол[[#This Row],[ВСЕГО ПОРЦИЙ]],\"\")","v":{"v":0.06944444444444445,"d":"0.07р."}},{"$f":"IFERROR(ШведскийСтол[[#This Row],[ПОРЦИЯ ДЛЯ РЕБЕНКА]]*ШведскийСтол[[#This Row],[СТОИМОСТЬ ПОРЦИИ]],\"\")","v":{"v":0.3472222222222222,"d":"0.35р."}},{"$f":"IFERROR(ШведскийСтол[[#This Row],[ПОРЦИЯ ДЛЯ ВЗРОСЛОГО]]*ШведскийСтол[[#This Row],[СТОИМОСТЬ ПОРЦИИ]],\"\")","v":{"v":0.6944444444444444,"d":"0.69р."}},"Ассорти"]
[null,"Итог",{"$f":"SUBTOTAL(109,ШведскийСтол[ОБЩАЯ СТОИМОСТЬ])","v":{"v":475,"d":"475.00р."}},{"$f":"SUBTOTAL(109,ШведскийСтол[ПОРЦИЯ ДЛЯ РЕБЕНКА])","v":34.5},{"$f":"SUBTOTAL(109,ШведскийСтол[ПОРЦИЯ ДЛЯ ВЗРОСЛОГО])","v":65.5},{"$f":"SUBTOTAL(109,ШведскийСтол[ВСЕГО ПОРЦИЙ])","v":2393},{"$f":"SUBTOTAL(109,ШведскийСтол[СТОИМОСТЬ ПОРЦИИ])","v":{"v":6.915706603622084,"d":"6.92р."}},{"$f":"SUBTOTAL(109,ШведскийСтол[СТОИМОСТЬ НА РЕБЕНКА])","v":{"v":7.252884190656953,"d":"7.25р."}},{"$f":"SUBTOTAL(109,ШведскийСтол[СТОИМОСТЬ НА ВЗРОСЛОГО])","v":{"v":12.690089084110037,"d":"12.69р."}}]

{"sheet":"Дополнительно","index":3,"n_rows":30,"n_cols":5,"rows_kept":30,"merged":[[14,1,14,4],[22,1,22,4]]}
[]
[]
[null,"Дополнительно"]
[]
[]
[null,"Оборудование и приборы","Стоимость","Наличие","Примечания"]
[null,"Аренда помещения или зала",{"v":250,"d":"250.00р."},"Да"]
[null,"Скатерти",{"v":30,"d":"30.00р."},"Да","Аренда"]
[null,"Столы и стулья",{"v":0,"d":"0.00р."},null,"Включено в аренду зала"]
[null,"Салфетки для напитков",{"v":25,"d":"25.00р."}]
[null,"Салфетки для ужина",{"v":20,"d":"20.00р."},null,"Аренда"]
[null,"Сервировка стола",{"v":50,"d":"50.00р."},null,"Аренда"]
[null,"Стеклянная посуда",{"v":25,"d":"25.00р."},null,"Аренда"]
[null,"Итог",{"$f":"SUBTOTAL(109,Таблица1Бюджет[Стоимость])","v":{"v":400,"d":"400.00р."}}]
[]
[]
[null,"Декорации","Стоимость","Наличие","Примечания"]
[null,"Шары",{"v":25,"d":"25.00р."}]
[null,"Баллон с гелием",{"v":50,"d":"50.00р."},null,"Аренда"]
[null,"Декор в центре стола",{"v":100,"d":"100.00р."},"Да","Всего: 10"]
[null,"Стеклянные вазы",{"v":0,"d":"0.00р."},null,"Одолжить у Юлии"]
[null,"Итог",{"$f":"SUBTOTAL(109,Таблица2Бюджет[Стоимость])","v":{"v":175,"d":"175.00р."}}]
[]
[]
[null,"Другое","Стоимость","Наличие","Примечания"]
[null,"Приглашения",{"v":50,"d":"50.00р."},"Да"]
[null,"Почтовые расходы",{"v":60,"d":"60.00р."},"Да"]
[null,"Фотограф",{"v":125,"d":"125.00р."},null,"2 часа (14:00–16:00)"]
[null,"Сувениры для гостей",{"v":50,"d":"50.00р."}]
[null,"Итог",{"$f":"SUBTOTAL(109,Таблица3Бюджет[Стоимость])","v":{"v":285,"d":"285.00р."}}]

{"sheet":"Схема распределения мест","index":4,"n_rows":43,"n_cols":34,"rows_kept":43,"merged":[[35,0,35,17],[35,19,35,33]]}
["Распределение мест"]
{"$rows_empty":33}
[{"$nulls":33},"*1 квадрат = приблизительно 1 м в квадрате"]
["Примечания",{"$nulls":18},{"$f":"\" Всего подтвержденных гостей: \"&ПодтвержденоГостей","v":" Всего подтвержденных гостей: 46"}]
[{"$nulls":19},"Доступные варианты расположения столов:"]
[{"$nulls":20},{"$f":"ROUNDUP(ПодтвержденоГостей/6,0)&\" круглые 54-дюймовые столы (6 мест)\"","v":"8 круглые 54-дюймовые столы (6 мест)"}]
[{"$nulls":20},{"$f":"ROUNDUP(ПодтвержденоГостей/8,0) &\" круглые 60-дюймовые столы (8 мест)\"","v":"6 круглые 60-дюймовые столы (8 мест)"}]
[{"$nulls":20},{"$f":"ROUNDUP(ПодтвержденоГостей/10,0)&\"круглые 72-дюймовые столы (10 мест)\"","v":"5круглые 72-дюймовые столы (10 мест)"}]
[{"$nulls":20},{"$f":"ROUNDUP(ПодтвержденоГостей/6,0)& \" прямоугольные столы 30 x 72 дюйма (6 мест)\"","v":"8 прямоугольные столы 30 x 72 дюйма (6 мест)"}]
[{"$nulls":20},{"$f":"ROUNDUP(ПодтвержденоГостей/8,0)&\" прямоугольные столы 30 x 96 дюймов (8 мест)\"","v":"6 прямоугольные столы 30 x 96 дюймов (8 мест)"}]
[{"$nulls":19},"(Желательное расстояние между столами: 1 метр)"]